[Event "*** Titled Tuesday 3|2 Blitz"]
[Site "Chess.com"]
[Date "2016.03.01"]
[Round "2"]
[White "Danirod"]
[Black "StellarChessPro"]
[Result "1-0"]
[WhiteElo "2398"]
[BlackElo "2398"]
[TimeControl "180+2"]
[EndTime "11:50:35 PST"]
[Termination "Danirod won by resignation"]

1. e4 {[%clk 0:03:01.9]} 1... c5 {[%clk 0:03:00.5]} 2. Nf3 {[%clk 0:03:03]} 2...
d6 {[%clk 0:03:01.7]} 3. Bb5+ {[%clk 0:03:00.8]} 3... Bd7 {[%clk 0:03:02.4]} 4.
Bxd7+ {[%clk 0:03:01.7]} 4... Qxd7 {[%clk 0:03:04.3]} 5. O-O {[%clk 0:03:02.8]}
5... Nc6 {[%clk 0:03:04.9]} 6. c3 {[%clk 0:03:03.9]} 6... g6 {[%clk 0:03:06.3]}
7. d4 {[%clk 0:03:04.8]} 7... cxd4 {[%clk 0:03:08.2]} 8. cxd4 {[%clk 0:03:06]}
8... Bg7 {[%clk 0:03:09.4]} 9. Nc3 {[%clk 0:03:06.4]} 9... e5 {[%clk 0:03:01]}
10. Be3 {[%clk 0:03:02.3]} 10... Nge7 {[%clk 0:02:51.5]} 11. Qd2 {[%clk
0:02:59.7]} 11... O-O {[%clk 0:02:50.3]} 12. Rfd1 {[%clk 0:03:00.5]} 12... exd4
{[%clk 0:02:47.2]} 13. Nxd4 {[%clk 0:03:01.7]} 13... Nxd4 {[%clk 0:02:39.3]} 14.
Bxd4 {[%clk 0:03:02.7]} 14... Rad8 {[%clk 0:02:41.2]} 15. Bxg7 {[%clk
0:03:01.7]} 15... Kxg7 {[%clk 0:02:41.1]} 16. Qd4+ {[%clk 0:03:03.6]} 16... Kg8
{[%clk 0:02:42.1]} 17. Qxa7 {[%clk 0:03:05.5]} 17... Qe6 {[%clk 0:02:35.7]} 18.
Qd4 {[%clk 0:03:05.7]} 18... Nc6 {[%clk 0:02:32.5]} 19. Qd5 {[%clk 0:03:06.9]}
19... Qf6 {[%clk 0:02:31]} 20. a3 {[%clk 0:03:04]} 20... Ne5 {[%clk 0:02:29.8]}
21. h3 {[%clk 0:03:02.6]} 21... h5 {[%clk 0:02:30.1]} 22. Rac1 {[%clk
0:02:56.8]} 22... Rd7 {[%clk 0:02:25.3]} 23. Qd4 {[%clk 0:02:56.1]} 23... Qg7
{[%clk 0:02:13.4]} 24. Nd5 {[%clk 0:02:52.3]} 24... Re8 {[%clk 0:02:12.3]} 25.
f4 {[%clk 0:02:50.7]} 25... Nc6 {[%clk 0:02:13.3]} 26. Nf6+ {[%clk 0:02:38.5]}
26... Kh8 {[%clk 0:02:12.3]} 27. Qc3 {[%clk 0:02:39.8]} 27... Rde7 {[%clk
0:01:58.1]} 28. Nxe8 {[%clk 0:02:30.3]} 28... Rxe8 {[%clk 0:02:00]} 29. Qxg7+
{[%clk 0:02:18.6]} 29... Kxg7 {[%clk 0:02:01.9]} 30. Rc4 {[%clk 0:02:08.7]}
30... Re6 {[%clk 0:01:56.5]} 31. b4 {[%clk 0:02:06.9]} 31... f5 {[%clk
0:01:54.9]} 32. exf5 {[%clk 0:02:06.9]} 32... gxf5 {[%clk 0:01:54.9]} 33. Rd5
{[%clk 0:02:08.1]} 33... Kg6 {[%clk 0:01:53.1]} 34. a4 {[%clk 0:02:08]} 34... h4
{[%clk 0:01:47.5]} 35. Kf2 {[%clk 0:02:09.2]} 35... Kf6 {[%clk 0:01:47.4]} 36.
a5 {[%clk 0:02:09.1]} 36... Ne7 {[%clk 0:01:40]} 37. Rb5 {[%clk 0:02:08.5]}
37... d5 {[%clk 0:01:41.3]} 38. Rc7 {[%clk 0:02:00.7]} 38... Re4 {[%clk
0:01:41.2]} 39. Rb6+ {[%clk 0:01:53.5]} 39... Kf7 {[%clk 0:01:41.2]} 40. Kf3
{[%clk 0:01:55]} 40... Ke8 {[%clk 0:01:40.5]} 41. Rbxb7 {[%clk 0:01:44.6]} 41...
Kd8 {[%clk 0:01:41.6]} 42. Rxe7 {[%clk 0:01:45]} 1-0

[Event "*** Titled Tuesday 3|2 Blitz"]
[Site "Chess.com"]
[Date "2016.03.01"]
[Round "2"]
[White "ZEN-22"]
[Black "Winehouse83"]
[Result "0-1"]
[WhiteElo "2396"]
[BlackElo "2380"]
[TimeControl "180+2"]
[EndTime "11:51:14 PST"]
[Termination "Winehouse83 won by checkmate"]

1. e4 {[%clk 0:03:01.5]} 1... e5 {[%clk 0:02:59.9]} 2. Nc3 {[%clk 0:02:59.8]}
2... Nc6 {[%clk 0:02:54.3]} 3. f4 {[%clk 0:03:00.1]} 3... d6 {[%clk 0:02:27.3]}
4. Nf3 {[%clk 0:03:00]} 4... Nf6 {[%clk 0:02:24.7]} 5. Bb5 {[%clk 0:02:58]} 5...
exf4 {[%clk 0:02:21.2]} 6. d4 {[%clk 0:02:58.4]} 6... Bd7 {[%clk 0:02:19.7]} 7.
Bxf4 {[%clk 0:02:58.4]} 7... Be7 {[%clk 0:02:18.5]} 8. h3 {[%clk 0:02:55.3]}
8... Nh5 {[%clk 0:02:13.5]} 9. Bh2 {[%clk 0:02:46.5]} 9... Bh4+ {[%clk
0:02:13.8]} 10. Nxh4 {[%clk 0:02:42.2]} 10... Qxh4+ {[%clk 0:02:14.3]} 11. Kf1
{[%clk 0:02:42.5]} 11... Ng3+ {[%clk 0:02:12.6]} 12. Bxg3 {[%clk 0:02:43.1]}
12... Qxg3 {[%clk 0:02:13.4]} 13. Bxc6 {[%clk 0:02:43.5]} 13... bxc6 {[%clk
0:02:05.1]} 14. Qf3 {[%clk 0:02:44.8]} 14... Qg6 {[%clk 0:02:00]} 15. Kg1 {[%clk
0:02:43.9]} 15... Rb8 {[%clk 0:01:57.9]} 16. b3 {[%clk 0:02:44.6]} 16... O-O
{[%clk 0:01:56.6]} 17. Kh2 {[%clk 0:02:44.5]} 17... Rbe8 {[%clk 0:01:52.1]} 18.
Rhf1 {[%clk 0:02:39.6]} 18... f5 {[%clk 0:01:49]} 19. exf5 {[%clk 0:02:33.5]}
19... Rxf5 {[%clk 0:01:47.5]} 20. Qd3 {[%clk 0:02:29.3]} 20... Ref8 {[%clk
0:01:39.4]} 21. Rxf5 {[%clk 0:02:23.4]} 21... Bxf5 {[%clk 0:01:34.3]} 22. Qc4+
{[%clk 0:02:24.1]} 22... d5 {[%clk 0:01:35]} 23. Qc5 {[%clk 0:02:23.5]} 23...
Bxc2 {[%clk 0:01:33.5]} 24. Re1 {[%clk 0:02:20.6]} 24... Rf2 {[%clk 0:01:23.6]}
25. Rg1 {[%clk 0:02:20.9]} 25... Qd6+ {[%clk 0:01:19]} 26. Qxd6 {[%clk
0:02:14.5]} 26... cxd6 {[%clk 0:01:20.9]} 27. Kg3 {[%clk 0:02:14.4]} 27... Rd2
{[%clk 0:01:19.5]} 28. Rc1 {[%clk 0:02:15.9]} 28... Rd3+ {[%clk 0:01:19.3]} 29.
Kf4 {[%clk 0:02:16.9]} 29... Rxc3 {[%clk 0:01:20.1]} 30. g4 {[%clk 0:02:18.6]}
30... c5 {[%clk 0:01:20.1]} 31. dxc5 {[%clk 0:02:19.3]} 31... dxc5 {[%clk
0:01:20.8]} 32. Ke5 {[%clk 0:02:19.9]} 32... d4 {[%clk 0:01:21.7]} 33. b4 {[%clk
0:02:19.1]} 33... d3 {[%clk 0:01:20.1]} 34. bxc5 {[%clk 0:02:20.4]} 34... d2
{[%clk 0:01:20.9]} 35. Ra1 {[%clk 0:02:17.3]} 35... d1=Q {[%clk 0:01:21.5]} 36.
Rxd1 {[%clk 0:02:17.2]} 36... Bxd1 {[%clk 0:01:22.4]} 37. Kd4 {[%clk 0:02:19.1]}
37... Rc1 {[%clk 0:01:17.8]} 38. a3 {[%clk 0:02:19.7]} 38... Bf3 {[%clk
0:01:18.3]} 39. g5 {[%clk 0:02:20.3]} 39... Kf7 {[%clk 0:01:19]} 40. h4 {[%clk
0:02:21.6]} 40... Kg6 {[%clk 0:01:20.2]} 41. a4 {[%clk 0:02:21]} 41... a5 {[%clk
0:01:19]} 42. Ke3 {[%clk 0:02:20.4]} 42... Bc6 {[%clk 0:01:19.7]} 43. Kd4 {[%clk
0:02:21.6]} 43... Kh5 {[%clk 0:01:18]} 44. Ke5 {[%clk 0:02:23.5]} 44... Rxc5+
{[%clk 0:01:17.9]} 45. Kd6 {[%clk 0:02:25.1]} 45... Rc4 {[%clk 0:01:19]} 46. Kc7
{[%clk 0:02:25.8]} 46... Rxa4 {[%clk 0:01:19.7]} 47. Kb6 {[%clk 0:02:27.2]}
47... Rxh4 {[%clk 0:01:20.1]} 48. Kxa5 {[%clk 0:02:28.3]} 48... Kxg5 {[%clk
0:01:20]} 49. Kb6 {[%clk 0:02:30.2]} 49... Rf4 {[%clk 0:01:20.6]} 50. Kc5 {[%clk
0:02:30.8]} 50... Bf3 {[%clk 0:01:21.5]} 51. Kd6 {[%clk 0:02:32.7]} 51... h5
{[%clk 0:01:22.3]} 52. Ke5 {[%clk 0:02:34.6]} 52... h4 {[%clk 0:01:23.4]} 53.
Kd6 {[%clk 0:02:36.5]} 53... Re4 {[%clk 0:01:24.5]} 54. Kc5 {[%clk 0:02:38.4]}
54... h3 {[%clk 0:01:25.7]} 55. Kd5 {[%clk 0:02:39.1]} 55... h2 {[%clk
0:01:26.7]} 56. Kd6 {[%clk 0:02:40.5]} 56... h1=Q {[%clk 0:01:27.5]} 57. Kd5
{[%clk 0:02:42.4]} 57... Qd1+ {[%clk 0:01:28.2]} 58. Kc5 {[%clk 0:02:43.3]}
58... Qc2+ {[%clk 0:01:29]} 59. Kd5 {[%clk 0:02:43.8]} 59... Qd3+ {[%clk
0:01:30]} 60. Kc5 {[%clk 0:02:44.7]} 60... Rc4+ {[%clk 0:01:31]} 61. Kb6 {[%clk
0:02:46.6]} 61... Qb3+ {[%clk 0:01:31.9]} 62. Ka5 {[%clk 0:02:48.3]} 62... Ra4#
{[%clk 0:01:32.8]} 0-1

[Event "*** Titled Tuesday 3|2 Blitz"]
[Site "Chess.com"]
[Date "2016.03.01"]
[Round "2"]
[White "jcgs1030"]
[Black "evgenyermolaev"]
[Result "1/2-1/2"]
[WhiteElo "2236"]
[BlackElo "2041"]
[TimeControl "180+2"]
[EndTime "11:51:41 PST"]
[Termination "Game drawn by repetition"]

1. e4 {[%clk 0:03:01.9]} 1... c5 {[%clk 0:03:00.3]} 2. Nf3 {[%clk 0:03:02.7]}
2... d6 {[%clk 0:03:01.2]} 3. d4 {[%clk 0:03:03.7]} 3... cxd4 {[%clk 0:03:02.5]}
4. Nxd4 {[%clk 0:03:05.6]} 4... Nf6 {[%clk 0:03:03.9]} 5. Nc3 {[%clk 0:03:07.2]}
5... a6 {[%clk 0:03:05.3]} 6. Bg5 {[%clk 0:03:07.7]} 6... e6 {[%clk 0:03:05.6]}
7. Qe2 {[%clk 0:03:08.2]} 7... h6 {[%clk 0:03:02.6]} 8. Be3 {[%clk 0:03:07.1]}
8... b5 {[%clk 0:03:01.6]} 9. f3 {[%clk 0:03:08.1]} 9... Nbd7 {[%clk 0:03:02.2]}
10. g4 {[%clk 0:03:09.1]} 10... Bb7 {[%clk 0:03:02.8]} 11. h4 {[%clk 0:03:07.3]}
11... Nb6 {[%clk 0:03:02.9]} 12. Bg2 {[%clk 0:02:55.5]} 12... Rc8 {[%clk
0:03:01.8]} 13. g5 {[%clk 0:02:55.7]} 13... hxg5 {[%clk 0:03:01.1]} 14. hxg5
{[%clk 0:02:57.6]} 14... Rxh1+ {[%clk 0:03:01.7]} 15. Bxh1 {[%clk 0:02:59.5]}
15... b4 {[%clk 0:02:43.9]} 16. Nd1 {[%clk 0:02:51.3]} 16... Nfd7 {[%clk
0:02:39]} 17. g6 {[%clk 0:02:51.2]} 17... Qf6 {[%clk 0:02:32.1]} 18. gxf7+
{[%clk 0:02:49.7]} 18... Qxf7 {[%clk 0:02:32.9]} 19. Nf2 {[%clk 0:02:42.9]}
19... Be7 {[%clk 0:02:16.6]} 20. O-O-O {[%clk 0:02:40.5]} 20... Nc4 {[%clk
0:02:10.3]} 21. Nd3 {[%clk 0:02:27.3]} 21... a5 {[%clk 0:01:56.9]} 22. Kb1
{[%clk 0:02:21]} 22... Ba6 {[%clk 0:01:24.7]} 23. f4 {[%clk 0:02:09.7]} 23...
Ndb6 {[%clk 0:01:21.4]} 24. Bc1 {[%clk 0:02:06.8]} 24... Na4 {[%clk 0:01:12.4]}
25. Qg4 {[%clk 0:02:01.6]} 25... e5 {[%clk 0:00:43.3]} 26. Nf5 {[%clk
0:01:59.2]} 26... Na3+ {[%clk 0:00:41.1]} 27. Ka1 {[%clk 0:01:47.8]} 27... Nxc2+
{[%clk 0:00:40.5]} 28. Kb1 {[%clk 0:01:47.7]} 28... Na3+ {[%clk 0:00:26.1]} 29.
Ka1 {[%clk 0:01:45.3]} 29... Nc2+ {[%clk 0:00:15.6]} 30. Kb1 {[%clk 0:01:45.5]}
30... Na3+ {[%clk 0:00:13.9]} 31. Ka1 {[%clk 0:01:46.3]} 31... Nc2+ {[%clk
0:00:10.4]} 32. Kb1 {[%clk 0:01:47]} 32... Na3+ {[%clk 0:00:11.2]} 33. Ka1
{[%clk 0:01:48.2]} 33... Nc2+ {[%clk 0:00:12]} 34. Kb1 {[%clk 0:01:47.7]} 34...
Na3+ {[%clk 0:00:12]} 35. Ka1 {[%clk 0:01:47]} 35... Nc2+ {[%clk 0:00:12.3]}
1/2-1/2

[Event "*** Titled Tuesday 3|2 Blitz"]
[Site "Chess.com"]
[Date "2016.03.01"]
[Round "2"]
[White "lionheart95"]
[Black "D-Prawira"]
[Result "1-0"]
[WhiteElo "2350"]
[BlackElo "2204"]
[TimeControl "180+2"]
[EndTime "11:52:01 PST"]
[Termination "lionheart95 won on time"]

1. e4 {[%clk 0:02:57.3]} 1... c5 {[%clk 0:03:00.1]} 2. Nf3 {[%clk 0:02:57.9]}
2... e6 {[%clk 0:03:00.8]} 3. d4 {[%clk 0:02:58.4]} 3... cxd4 {[%clk 0:03:01.9]}
4. Nxd4 {[%clk 0:03:00.3]} 4... a6 {[%clk 0:03:03.2]} 5. c4 {[%clk 0:03:01.1]}
5... Qc7 {[%clk 0:03:02.1]} 6. Nc3 {[%clk 0:03:01.7]} 6... Nf6 {[%clk
0:03:02.6]} 7. a3 {[%clk 0:02:59.6]} 7... d6 {[%clk 0:03:03.5]} 8. Be3 {[%clk
0:02:55]} 8... b6 {[%clk 0:03:04.4]} 9. Be2 {[%clk 0:02:55.7]} 9... Bb7 {[%clk
0:03:05.2]} 10. f3 {[%clk 0:02:57.3]} 10... Nbd7 {[%clk 0:03:06]} 11. O-O {[%clk
0:02:58.6]} 11... Be7 {[%clk 0:03:03.7]} 12. Qd2 {[%clk 0:02:59.5]} 12... O-O
{[%clk 0:02:59.4]} 13. Rfc1 {[%clk 0:03:01.4]} 13... Rac8 {[%clk 0:02:54.3]} 14.
b4 {[%clk 0:03:02.2]} 14... Rfe8 {[%clk 0:02:44.1]} 15. Nb3 {[%clk 0:02:58.9]}
15... Qb8 {[%clk 0:02:40]} 16. a4 {[%clk 0:02:59.5]} 16... Bd8 {[%clk
0:02:38.1]} 17. Kh1 {[%clk 0:03:00.3]} 17... Bc7 {[%clk 0:02:38.3]} 18. Bg1
{[%clk 0:03:01.6]} 18... Rcd8 {[%clk 0:02:30.7]} 19. a5 {[%clk 0:03:00.3]} 19...
d5 {[%clk 0:02:01.4]} 20. exd5 {[%clk 0:02:56.3]} 20... exd5 {[%clk 0:02:01.4]}
21. c5 {[%clk 0:02:56.8]} 21... bxc5 {[%clk 0:01:53.9]} 22. bxc5 {[%clk
0:02:57.1]} 22... Ne5 {[%clk 0:01:43.5]} 23. Nd4 {[%clk 0:02:57.6]} 23... Nc4
{[%clk 0:01:42.9]} 24. Qd3 {[%clk 0:02:48.9]} 24... Bf4 {[%clk 0:01:26.1]} 25.
Rcb1 {[%clk 0:02:47.7]} 25... Qc7 {[%clk 0:01:25.4]} 26. Bf1 {[%clk 0:02:40]}
26... Be3 {[%clk 0:01:24.5]} 27. Nf5 {[%clk 0:02:28.3]} 27... Bxg1 {[%clk
0:01:14.5]} 28. Kxg1 {[%clk 0:02:27.9]} 28... Ne5 {[%clk 0:01:12.3]} 29. Qd4
{[%clk 0:02:26.1]} 29... Nc6 {[%clk 0:01:11.3]} 30. Qh4 {[%clk 0:02:21.8]} 30...
d4 {[%clk 0:01:09.3]} 31. Qg5 {[%clk 0:02:19.4]} 31... g6 {[%clk 0:00:54.1]} 32.
Qxf6 {[%clk 0:02:14]} 32... gxf5 {[%clk 0:00:54.5]} 33. Ne2 {[%clk 0:02:14.7]}
33... d3 {[%clk 0:00:45.7]} 34. Ng3 {[%clk 0:02:15.4]} 34... Re6 {[%clk
0:00:43.5]} 35. Qxf5 {[%clk 0:02:16.1]} 35... Nd4 {[%clk 0:00:37.4]} 36. Qg5+
{[%clk 0:02:03.4]} 36... Rg6 {[%clk 0:00:38]} 37. Rxb7 {[%clk 0:02:02.8]} 37...
Qc8 {[%clk 0:00:08.1]} 38. Qe7 {[%clk 0:01:56.1]} 38... Rf8 {[%clk 0:00:06.5]}
39. Bxd3 {[%clk 0:01:55.6]} 39... Rg7 {[%clk 0:00:05.3]} 40. Nh5 {[%clk
0:01:51.5]} 1-0

[Event "*** Titled Tuesday 3|2 Blitz"]
[Site "Chess.com"]
[Date "2016.03.01"]
[Round "2"]
[White "AndroQueen"]
[Black "KamilPlichta"]
[Result "1-0"]
[WhiteElo "2536"]
[BlackElo "2432"]
[TimeControl "180+2"]
[EndTime "11:52:23 PST"]
[Termination "AndroQueen won by resignation"]

1. d4 {[%clk 0:03:01.9]} 1... g6 {[%clk 0:03:00.7]} 2. e4 {[%clk 0:03:02.3]}
2... Bg7 {[%clk 0:03:01.3]} 3. Nc3 {[%clk 0:03:03.3]} 3... c5 {[%clk 0:03:02.9]}
4. dxc5 {[%clk 0:03:00.9]} 4... Bxc3+ {[%clk 0:03:03.9]} 5. bxc3 {[%clk
0:03:01.2]} 5... Nf6 {[%clk 0:03:05.6]} 6. e5 {[%clk 0:02:32.1]} 6... Ne4 {[%clk
0:03:05.6]} 7. Bc4 {[%clk 0:02:15]} 7... Qa5 {[%clk 0:03:02.3]} 8. Ne2 {[%clk
0:02:06.9]} 8... Nc6 {[%clk 0:02:54.9]} 9. Qd5 {[%clk 0:01:57.2]} 9... Nxc5
{[%clk 0:02:37.1]} 10. Qxf7+ {[%clk 0:01:50.5]} 10... Kd8 {[%clk 0:02:38.3]} 11.
O-O {[%clk 0:01:42.5]} 11... Nxe5 {[%clk 0:02:08.2]} 12. Qg7 {[%clk 0:01:41.8]}
12... Nxc4 {[%clk 0:02:09.1]} 13. Qxh8+ {[%clk 0:01:41.6]} 13... Kc7 {[%clk
0:02:10.6]} 14. Qd4 {[%clk 0:01:38.3]} 14... Nb6 {[%clk 0:02:02.5]} 15. Be3
{[%clk 0:01:19.8]} 15... d6 {[%clk 0:02:03.3]} 16. Qg7 {[%clk 0:01:08.2]} 16...
Bd7 {[%clk 0:01:50.3]} 17. Qxe7 {[%clk 0:01:06.3]} 17... Nd5 {[%clk 0:01:41.8]}
18. Qxh7 {[%clk 0:00:59.7]} 18... Re8 {[%clk 0:01:39]} 19. Rad1 {[%clk 0:00:50]}
19... Nxe3 {[%clk 0:01:37.4]} 20. fxe3 {[%clk 0:00:51.9]} 20... Rxe3 {[%clk
0:01:39]} 21. Nf4 {[%clk 0:00:50.1]} 21... Kc6 {[%clk 0:01:24.7]} 22. Qxg6
{[%clk 0:00:44.9]} 22... Ne4 {[%clk 0:01:26]} 23. Nd5 {[%clk 0:00:41.2]} 23...
Re2 {[%clk 0:01:22]} 24. Rd4 {[%clk 0:00:33.5]} 24... Qc5 {[%clk 0:01:18.8]} 25.
Nb4+ {[%clk 0:00:31]} 25... Kc7 {[%clk 0:01:17.2]} 26. Nd3 {[%clk 0:00:31.5]}
26... Qb6 {[%clk 0:01:12.4]} 27. Nf4 {[%clk 0:00:25.2]} 27... Nxc3 {[%clk
0:01:07.2]} 28. Qd3 {[%clk 0:00:20]} 28... Re4 {[%clk 0:00:27.6]} 29. Qxc3+
{[%clk 0:00:19.3]} 29... Bc6 {[%clk 0:00:29.2]} 30. Nd5+ {[%clk 0:00:20]} 1-0

[Event "*** Titled Tuesday 3|2 Blitz"]
[Site "Chess.com"]
[Date "2016.03.01"]
[Round "2"]
[White "Tesla17"]
[Black "AvitalBor"]
[Result "1-0"]
[WhiteElo "2249"]
[BlackElo "2327"]
[TimeControl "180+2"]
[EndTime "11:52:24 PST"]
[Termination "Tesla17 won on time"]

1. d4 {[%clk 0:03:01.9]} 1... e6 {[%clk 0:02:59.4]} 2. c4 {[%clk 0:03:03]} 2...
Bb4+ {[%clk 0:02:59.6]} 3. Nd2 {[%clk 0:03:03.5]} 3... f5 {[%clk 0:02:53.4]} 4.
Nf3 {[%clk 0:03:04.7]} 4... Nf6 {[%clk 0:02:53.4]} 5. e3 {[%clk 0:03:05.6]} 5...
b6 {[%clk 0:02:54.2]} 6. Be2 {[%clk 0:03:04.7]} 6... Bb7 {[%clk 0:02:54.9]} 7.
O-O {[%clk 0:03:06.1]} 7... O-O {[%clk 0:02:53.8]} 8. a3 {[%clk 0:03:07.3]} 8...
Bxd2 {[%clk 0:02:53.7]} 9. Bxd2 {[%clk 0:03:08.2]} 9... d6 {[%clk 0:02:54.8]}
10. Ne1 {[%clk 0:03:08.1]} 10... Nbd7 {[%clk 0:02:55.7]} 11. f3 {[%clk
0:03:09.1]} 11... Rc8 {[%clk 0:02:50.4]} 12. Bc3 {[%clk 0:03:09.9]} 12... c5
{[%clk 0:02:39.4]} 13. b4 {[%clk 0:03:09.6]} 13... cxd4 {[%clk 0:02:38.5]} 14.
Bxd4 {[%clk 0:03:09.7]} 14... e5 {[%clk 0:02:39.1]} 15. Bb2 {[%clk 0:03:10.4]}
15... Qe7 {[%clk 0:02:40]} 16. a4 {[%clk 0:03:09]} 16... Ba6 {[%clk 0:02:37.7]}
17. Qb3 {[%clk 0:03:05.3]} 17... Qe6 {[%clk 0:02:37.6]} 18. Rc1 {[%clk
0:02:58.2]} 18... Kh8 {[%clk 0:02:37.6]} 19. a5 {[%clk 0:02:57.7]} 19... bxa5
{[%clk 0:02:37.7]} 20. b5 {[%clk 0:02:58.4]} 20... Bb7 {[%clk 0:02:35]} 21. Qa3
{[%clk 0:02:59.7]} 21... d5 {[%clk 0:02:27.8]} 22. c5 {[%clk 0:02:58.9]} 22...
d4 {[%clk 0:02:17.4]} 23. c6 {[%clk 0:02:52.8]} 23... Bxc6 {[%clk 0:02:17.2]}
24. bxc6 {[%clk 0:02:52.5]} 24... Rxc6 {[%clk 0:02:19.1]} 25. Bb5 {[%clk
0:02:32.4]} 25... Rxc1 {[%clk 0:02:17.9]} 26. Bxc1 {[%clk 0:02:34.3]} 26... Rb8
{[%clk 0:02:09.1]} 27. Bxd7 {[%clk 0:02:25.1]} 27... Qxd7 {[%clk 0:02:11]} 28.
exd4 {[%clk 0:02:23.5]} 28... exd4 {[%clk 0:02:09]} 29. Nd3 {[%clk 0:02:24.2]}
29... Nd5 {[%clk 0:02:06.5]} 30. Bd2 {[%clk 0:02:23.8]} 30... a4 {[%clk
0:02:05.6]} 31. Ne5 {[%clk 0:02:20.5]} 31... Qc7 {[%clk 0:02:02.3]} 32. Re1
{[%clk 0:02:15.4]} 32... Qc2 {[%clk 0:01:51.7]} 33. Qd6 {[%clk 0:02:09.2]} 33...
Nc7 {[%clk 0:01:44.2]} 34. Qxd4 {[%clk 0:01:47]} 34... a3 {[%clk 0:01:30]} 35.
Bc3 {[%clk 0:01:47.3]} 35... Ne6 {[%clk 0:01:20]} 36. Qd6 {[%clk 0:01:32.8]}
36... Re8 {[%clk 0:01:20.1]} 37. Qd7 {[%clk 0:01:26.5]} 37... Nc7 {[%clk
0:00:45.3]} 38. Nf7+ {[%clk 0:01:24.7]} 1-0

[Event "*** Titled Tuesday 3|2 Blitz"]
[Site "Chess.com"]
[Date "2016.03.01"]
[Round "2"]
[White "Alexander_Donchenko"]
[Black "JustaTrickstar"]
[Result "1-0"]
[WhiteElo "2613"]
[BlackElo "2465"]
[TimeControl "180+2"]
[EndTime "11:52:34 PST"]
[Termination "Alexander_Donchenko won by resignation"]

1. d4 {[%clk 0:03:01.9]} 1... f5 {[%clk 0:02:59.8]} 2. Bg5 {[%clk 0:03:01.8]}
2... g6 {[%clk 0:02:59.8]} 3. Nc3 {[%clk 0:03:02.9]} 3... Bg7 {[%clk 0:02:53]}
4. e3 {[%clk 0:03:03.1]} 4... d5 {[%clk 0:02:48.2]} 5. h4 {[%clk 0:03:01.1]}
5... Nf6 {[%clk 0:02:36.6]} 6. Nh3 {[%clk 0:02:55.3]} 6... h6 {[%clk 0:02:31.4]}
7. Bxf6 {[%clk 0:02:55.9]} 7... Bxf6 {[%clk 0:02:32.2]} 8. Nf4 {[%clk
0:02:57.2]} 8... Kf7 {[%clk 0:01:58.1]} 9. Ncxd5 {[%clk 0:02:51.1]} 9... Bg7
{[%clk 0:01:56.3]} 10. Bc4 {[%clk 0:02:48.9]} 10... e6 {[%clk 0:01:55.9]} 11.
Nc3 {[%clk 0:02:42.8]} 11... c6 {[%clk 0:01:55.8]} 12. g4 {[%clk 0:02:28.8]}
12... g5 {[%clk 0:01:52.3]} 13. Nh5 {[%clk 0:02:17.8]} 13... Kg6 {[%clk
0:01:46.8]} 14. gxf5+ {[%clk 0:02:11.7]} 14... exf5 {[%clk 0:01:46.8]} 15. Nxg7
{[%clk 0:02:04.1]} 15... Kxg7 {[%clk 0:01:47.6]} 16. Qh5 {[%clk 0:02:02.4]}
16... Qe8 {[%clk 0:01:22.6]} 17. hxg5 {[%clk 0:02:02.9]} 17... Qxh5 {[%clk
0:01:20.4]} 18. Rxh5 {[%clk 0:02:04.8]} 18... hxg5 {[%clk 0:01:20]} 19. Rxg5+
{[%clk 0:02:06.7]} 19... Kf6 {[%clk 0:01:21.3]} 20. Rg1 {[%clk 0:02:07]} 20...
Nd7 {[%clk 0:01:22.2]} 21. O-O-O {[%clk 0:02:03.8]} 21... Nb6 {[%clk 0:01:23.2]}
22. Bb3 {[%clk 0:02:03.7]} 22... a5 {[%clk 0:01:23.5]} 23. a3 {[%clk 0:02:02.9]}
23... Rh2 {[%clk 0:01:13.4]} 24. Rh1 {[%clk 0:01:51.2]} 24... Rxh1 {[%clk
0:01:06.6]} 25. Rxh1 {[%clk 0:01:53.1]} 25... Kg7 {[%clk 0:01:07.5]} 26. Rg1+
{[%clk 0:01:49.2]} 26... Kf6 {[%clk 0:01:08.2]} 27. Rg8 {[%clk 0:01:49.1]} 27...
Bd7 {[%clk 0:01:08.3]} 28. Rxa8 {[%clk 0:01:45.7]} 28... Nxa8 {[%clk 0:01:10.2]}
29. Na4 {[%clk 0:01:42.7]} 29... b6 {[%clk 0:01:04.3]} 30. Kd2 {[%clk
0:01:41.7]} 30... Ke7 {[%clk 0:01:05.3]} 31. c4 {[%clk 0:01:32.8]} 31... c5
{[%clk 0:00:59.6]} 32. dxc5 {[%clk 0:01:27.5]} 32... Bxa4 {[%clk 0:01:00.5]} 33.
Bxa4 {[%clk 0:01:28.9]} 33... bxc5 {[%clk 0:01:01.8]} 34. Bc2 {[%clk 0:01:20.8]}
34... Ke6 {[%clk 0:01:01.8]} 35. Kc3 {[%clk 0:01:20.3]} 35... Nb6 {[%clk
0:00:58.9]} 36. b4 {[%clk 0:01:20.4]} 36... axb4+ {[%clk 0:00:59.4]} 37. axb4
{[%clk 0:01:22.3]} 37... Nd7 {[%clk 0:00:58.8]} 38. Ba4 {[%clk 0:01:17.3]} 38...
Nb6 {[%clk 0:00:59.3]} 39. Bb3 {[%clk 0:01:16.9]} 39... Kd6 {[%clk 0:00:57]} 40.
Bc2 {[%clk 0:01:16.8]} 40... cxb4+ {[%clk 0:00:57]} 41. Kxb4 {[%clk 0:01:17.3]}
41... Ke5 {[%clk 0:00:58.7]} 42. f4+ {[%clk 0:01:16.8]} 42... Ke6 {[%clk
0:00:58.3]} 43. Kb5 {[%clk 0:01:15.5]} 43... Nd7 {[%clk 0:00:56.6]} 44. c5
{[%clk 0:01:16]} 44... Nf6 {[%clk 0:00:56.6]} 45. c6 {[%clk 0:01:10.7]} 45...
Kd6 {[%clk 0:00:54.5]} 46. Kb6 {[%clk 0:00:57.3]} 46... Nd5+ {[%clk 0:00:53.9]}
47. Kb7 {[%clk 0:00:58.5]} 1-0